bitfinex/quotes_SOLUSD_20241016
["timestamp","ask_amount","ask_price","bid_price","bid_amount"]
[1729097431435,6.4529,154.97,154.93,6.4543]
[1729097431808,6.4529,154.97,154.92,22.5917]
[1729097434438,6.4529,154.97,154.93,6.4544]
[1729097435821,6.4529,154.97,154.92,22.5917]
[1729097437325,6.4529,154.97,154.93,6.4544]
[1729097437553,6.1667,155.0,154.94,16.1348]
[1729097437849,6.4516,155.0,154.96,6.4532]
[1729097438628,6.4516,155.0,154.95,6.4535]
[1729097441025,6.452,154.99,154.95,6.4535]
[1729097442942,6.4516,155.0,154.95,6.4535]
[1729097444032,6.4516,155.0,154.94,16.1348]
[1729097444243,6.4516,155.0,154.96,6.4531]
[1729097446655,6.4521,154.99,154.95,6.4536]
[1729097448129,21.4655,155.04,154.89,36.11156332]
[1729097448130,16.127,155.02,154.89,36.11156332]
[1729097448329,6.4529,154.97,154.93,6.4545]
[1729097448951,6.4523,154.99,154.95,6.4536]
[1729097451358,6.4511,155.02,154.97,6.4527]
[1729097452130,21.4655,155.04,154.97,6.4527]
[1729097452331,6.4512,155.01,154.97,6.4527]
[1729097452731,6.4508,155.02,154.98,6.4523]
[1729097453329,6.4514,155.01,154.97,6.4528]
[1729097454138,16.7529713,155.05,154.96,16.1327]
[1729097454338,6.4504,155.03,154.99,6.4519]
[1729097455158,6.4504,155.03,154.96,16.1327]
[1729097455333,6.4504,155.03,154.98,6.4523]
[1729097455750,6.4509,155.02,154.98,6.4523]
[1729097455954,16.7529713,155.05,154.96,16.1327]
[1729097456256,36.17302544,155.04,154.93,16.1355]
[1729097456562,6.452,154.99,154.95,6.4534]
[1729097456966,39.901884,155.04,154.93,27.651921]
[1729097457260,12.39557261,155.03,154.93,11.516421]
[1729097457442,4.76752793,155.02,154.96,6.4531]
[1729097457647,16.125,155.04,154.96,6.4531]
[1729097457847,12.39746995,155.03,154.96,6.4531]
[1729097458037,16.125,155.04,154.96,6.4531]
[1729097458242,4.76861984,155.03,154.96,6.4531]
[1729097458461,6.4516,155.0,154.96,6.4531]
[1729097459840,16.125,155.04,154.96,6.4531]
[1729097460066,6.451,155.02,154.97,6.4527]
[1729097460380,6.451,155.02,154.95,16.1335]
[1729097460549,6.4504,155.03,154.98,6.4521]
[1729097460738,0.6285713,155.05,154.97,16.1313]
[1729097460943,6.4503,155.03,154.99,6.4516]
[1729097461142,0.6285713,155.05,154.98,20.0]
[1729097461364,6.4506,155.03,154.99,6.4519]
[1729097462059,6.45,155.04,155.0,6.4515]
[1729097462439,0.6285713,155.05,154.98,20.0]
[1729097462440,7.0781713,155.05,155.01,6.4508]
[1729097462650,0.6285713,155.05,155.02,6.4507]
[1729097464056,0.6285713,155.05,155.03,6.4502]
[1729097464678,6.45,155.04,155.0,6.4515]
[1729097465059,6.4504,155.03,154.98,42.5825]
[1729097465253,0.6285713,155.05,154.98,16.1305]
[1729097465445,6.4515,155.01,154.97,15.8695]
[1729097465769,6.4508,155.02,154.97,22.3222]
[1729097466481,6.4508,155.02,154.98,6.4522]
[1729097466651,6.4504,155.03,154.98,6.4522]
[1729097467171,0.6285713,155.05,155.0,6.4515]
[1729097467172,6.4501,155.04,155.0,6.4515]
[1729097467362,7.0781713,155.05,155.01,6.451]
[1729097467575,6.45,155.04,155.0,6.4515]
[1729097468145,7.0781713,155.05,155.01,6.4511]
[1729097469367,6.4502,155.04,154.99,22.5811]
[1729097471160,0.6285713,155.05,154.99,16.1294]
[1729097471375,0.6285713,155.05,154.98,6.4523]
[1729097471376,6.4508,155.02,154.98,6.4523]
[1729097471573,6.4519,155.0,154.97,15.8695]
[1729097471753,6.4512,155.01,154.97,22.3223]
[1729097471948,16.7527713,155.05,154.99,6.4519]
[1729097471949,6.4503,155.03,154.99,6.4519]
[1729097472483,0.6285713,155.05,154.98,16.1305]
[1729097472484,6.4507,155.02,154.98,22.5828]
[1729097473184,0.6285713,155.05,154.98,22.5828]
[1729097473361,6.4504,155.03,154.98,22.5828]
[1729097473882,6.45,155.04,154.99,6.4516]
[1729097474061,6.45,155.04,154.98,16.1305]
[1729097474062,6.45,155.04,155.0,6.4514]
[1729097475449,0.6285713,155.05,154.98,16.1305]
[1729097475654,4.79301044,155.04,154.98,16.1305]
[1729097475863,4.79301044,155.03,154.98,16.1305]
[1729097476077,6.4508,155.02,154.98,22.5826]
[1729097476282,6.4505,155.03,154.99,6.452]
[1729097477258,4.79806344,155.02,154.99,6.452]
[1729097477457,6.4505,155.03,154.99,6.452]
[1729097477659,4.79808725,155.02,154.99,6.452]
[1729097477970,6.4505,155.03,154.99,6.452]
[1729097478271,4.79805768,155.02,154.99,6.452]
[1729097478473,0.6285713,155.05,154.98,16.1305]
[1729097478670,6.4512,155.01,154.98,16.1305]
[1729097478867,0.6285713,155.05,154.98,22.5829]
[1729097479066,12.47966439,155.04,154.98,22.5829]
[1729097479273,6.451,155.02,154.98,22.5829]
[1729097480183,11.25361028,155.01,154.98,16.1305]
[1729097480482,6.4514,155.01,154.98,16.1305]
[1729097481686,6.4506,155.03,154.99,6.4519]
[1729097481884,4.8040832,155.02,154.99,6.4519]
[1729097482181,4.8040832,155.01,154.99,6.4519]
[1729097482361,6.4506,155.03,154.99,6.4519]
[1729097482557,11.25643063,155.02,154.98,22.5828]
[1729097482781,4.80563063,155.01,154.98,22.5828]
[1729097483089,8.6253437,155.05,154.99,6.4519]
[1729097483090,6.4504,155.03,154.99,6.4519]
[1729097483288,12.49787099,155.02,154.99,6.4519]
[1729097483483,12.49787099,155.02,155.0,6.4516]
[1729097483795,4.80687346,155.03,155.0,6.4516]
[1729097483974,4.80687346,155.02,155.0,6.4516]
[1729097484287,6.4502,155.04,155.0,6.4516]
[1729097484478,12.49836958,155.03,155.0,6.4516]
[1729097484670,4.80706522,155.02,155.0,6.4516]
[1729097484877,6.4502,155.04,155.0,6.4516]
[1729097485080,12.49850346,155.03,155.0,6.4516]
[1729097485265,4.80711671,155.02,155.0,6.4516]
[1729097485466,6.4502,155.04,155.0,6.4516]
[1729097485789,12.4981882,155.03,155.01,6.4508]
[1729097486091,4.80699546,155.02,155.01,6.4508]
[1729097486281,0.6285713,155.05,155.01,6.4511]
[1729097486282,4.80699546,155.04,155.01,6.4511]
[1729097486591,4.80732888,155.03,155.0,16.128]
[1729097486769,0.6285713,155.05,155.0,16.128]
[1729097487088,12.49676898,155.04,155.0,16.128]
[1729097487296,4.80644961,155.03,155.0,16.128]
[1729097487476,4.80644961,155.04,155.03,6.4503]
[1729097487672,4.80607862,155.04,155.03,6.4503]
[1729097489880,4.80607862,155.04,155.0,11.50809485]
[1729097489881,4.80607862,155.04,155.0,26.4512]
[1729097490076,4.80607862,155.03,155.01,6.4511]
[1729097490273,7.0783713,155.05,155.01,6.4511]
[1729097490463,4.80528155,155.04,155.01,6.4511]
[1729097490668,7.0783713,155.05,155.01,6.4511]
[1729097490925,4.80528207,155.04,155.01,6.4511]
[1729097491087,7.0783713,155.05,155.01,6.4511]
[1729097491294,4.80534941,155.04,155.01,6.4511]
[1729097491496,7.0783713,155.05,155.01,6.4511]
[1729097491668,4.80537371,155.04,155.01,6.4511]
[1729097491870,7.0783713,155.05,155.01,6.4511]
[1729097492078,4.80646322,155.04,155.01,6.4511]
[1729097492290,7.0783713,155.05,155.01,6.4511]
[1729097492491,4.80641934,155.04,155.01,6.4511]
[1729097492801,0.6285713,155.05,155.01,27.63589485]
[1729097492966,4.8068333,155.04,155.01,27.63589485]
[1729097493173,0.6285713,155.05,155.03,16.1253]
[1729097493372,4.80683611,155.04,155.03,22.5755]
[1729097493794,0.6285713,155.05,155.03,22.5755]
[1729097494191,0.6285713,155.05,155.03,16.1253]
[1729097494192,4.80709372,155.04,155.03,16.1253]
[1729097494373,0.6285713,155.05,155.03,16.1253]
[1729097494574,4.80668619,155.04,155.03,16.1253]
[1729097494875,0.6285713,155.05,155.03,22.5756]
[1729097495181,4.80725684,155.04,155.01,6.4511]
[1729097495487,0.6285713,155.05,154.99,20.0]
[1729097495679,18.94687565,155.04,155.0,6.4515]
[1729097495872,4.80637525,155.03,155.0,6.4515]
[1729097496073,4.80637525,155.03,154.99,11.50809485]
[1729097496297,0.6285713,155.05,155.02,6.4507]
[1729097496472,12.49984039,155.04,155.02,6.4507]
[1729097497100,12.49984039,155.04,155.01,22.5785]
[1729097497274,12.49984039,155.04,155.0,6.4514]
[1729097497275,18.95004039,155.04,155.0,6.4514]
[1729097497596,18.95004039,155.04,154.98,36.1304]
[1729097497597,4.80763092,155.03,154.99,6.4518]
[1729097498191,6.4502,155.04,154.99,6.4518]
[1729097498419,4.80900506,155.03,154.99,6.4518]
[1729097498600,6.4502,155.04,155.0,6.4515]
[1729097498914,4.80912953,155.03,155.0,6.4515]
[1729097499078,6.4502,155.04,155.0,6.4515]
[1729097499274,4.80936211,155.03,155.0,6.4515]
[1729097499479,6.4502,155.04,155.0,6.4515]
[1729097499883,4.80935624,155.03,155.0,6.4515]
[1729097500107,6.4502,155.04,155.0,6.4515]
[1729097500308,4.80970502,155.03,155.0,6.4515]
[1729097500485,6.4502,155.04,155.0,6.4515]
[1729097500682,4.80979428,155.03,155.0,6.4515]
[1729097500883,6.4502,155.04,155.0,6.4515]
[1729097501098,4.80974568,155.03,155.0,6.4515]
[1729097501299,6.4502,155.04,155.0,6.4515]
[1729097501505,4.80926997,155.03,154.95,16.1336]
[1729097501717,12.50321683,155.02,154.93,16.5036]
[1729097502007,0.7285713,155.05,154.93,22.958]
[1729097502008,6.4529,154.97,154.93,22.958]
[1729097502509,6.4525,154.98,154.94,6.454]
[1729097503009,4.80730971,154.97,154.94,6.454]
[1729097503214,6.4521,154.99,154.94,6.454]
[1729097503399,12.50104329,154.98,154.94,6.454]
[1729097503599,4.80815125,154.97,154.94,6.454]
[1729097503906,6.4521,154.99,154.94,6.454]
[1729097504212,12.50129005,154.98,154.94,6.454]
[1729097504408,4.80818848,154.97,154.94,6.454]
[1729097504608,8.01500621,155.01,154.95,16.1341]
[1729097504792,12.50083606,155.0,154.98,6.4523]
[1729097504990,8.01500621,155.04,154.95,17.98824975]
[1729097505193,12.5023392,155.03,154.96,43.776884]
[1729097505400,12.5023392,155.02,155.0,6.4515]
[1729097505705,4.808592,155.01,155.0,6.4515]
[1729097505895,4.808592,155.03,155.0,6.4515]
[1729097506094,12.50385235,155.02,155.0,6.4515]
[1729097506291,4.808592,155.01,155.0,6.4515]
[1729097506499,4.808592,155.01,154.99,16.1296]
[1729097506705,8.01500621,155.04,154.96,16.1326]
[1729097506706,4.808592,155.0,154.96,16.1326]
[1729097506921,4.808592,154.99,154.96,16.1326]
[1729097507122,6.4527,154.98,154.94,26.4539]
[1729097507297,6.4527,154.98,154.94,6.4539]
[1729097508815,6.4512,155.01,154.97,6.4528]
[1729097509021,4.80376502,155.0,154.97,6.4528]
[1729097509315,8.01500621,155.03,154.94,43.776884]
[1729097509316,4.80376502,154.99,154.94,43.776884]
[1729097509519,14.46530621,155.04,155.0,6.4515]
[1729097509697,12.49091761,155.03,155.0,6.4515]
[1729097509896,12.49091761,155.02,155.0,6.4515]
[1729097510108,4.80419908,155.01,155.0,6.4515]
[1729097510332,4.80419908,155.03,155.01,6.4509]
[1729097510517,4.80463125,155.02,155.01,6.4509]
[1729097511496,7.0783713,155.05,155.01,6.4509]
[1729097511706,12.49339498,155.04,155.01,6.4509]
[1729097513037,4.80515191,155.03,155.0,6.4514]
[1729097513525,4.80515191,155.02,155.0,6.4514]
[1729097513705,6.4501,155.04,155.0,6.4514]
[1729097514025,4.80700072,155.03,155.0,6.4514]
[1729097514203,4.80700072,155.02,155.0,6.4514]
[1729097514405,6.4501,155.04,155.0,6.4514]
[1729097514637,4.807647,155.03,155.0,6.4514]
[1729097514931,6.4501,155.04,155.0,6.4514]
[1729097515108,4.80975328,155.03,155.0,6.4514]
[1729097515307,6.4501,155.04,155.0,6.4514]
[1729097515509,4.80977955,155.03,155.0,6.4514]
[1729097515822,6.4501,155.04,155.0,6.4514]
[1729097516125,4.80979139,155.03,155.0,6.4514]
[1729097516426,6.4501,155.04,155.0,6.4514]
[1729097516627,4.80980274,155.03,155.0,6.4514]
[1729097516814,6.4501,155.04,155.0,6.4514]
[1729097517125,4.8098349,155.03,155.0,6.4514]
[1729097517324,6.4501,155.04,155.0,6.4514]
[1729097517518,4.80971695,155.03,155.0,6.4514]
[1729097517708,6.4501,155.04,155.0,6.4514]
[1729097517908,4.80968722,155.03,155.0,6.4514]
[1729097518122,6.4501,155.04,155.0,6.4514]
[1729097518323,4.80994793,155.03,155.0,6.4514]
[1729097518528,6.4501,155.04,155.0,6.4514]
[1729097518710,4.80995086,155.03,155.0,6.4514]
[1729097518909,6.4501,155.04,155.0,6.4514]
[1729097519109,4.81055698,155.03,154.99,16.1297]
[1729097519335,4.81060825,155.02,154.99,22.5816]
[1729097519506,6.4504,155.03,154.99,22.5816]
[1729097519833,4.81051601,155.02,154.99,22.5816]
[1729097520009,6.4504,155.03,154.99,22.5816]
[1729097520327,4.81062367,155.02,155.0,6.4515]
[1729097520534,6.45,155.04,155.0,6.4515]
[1729097520934,6.45,155.04,154.99,16.1297]
[1729097520935,4.8105075,155.03,155.01,6.4509]
[1729097521113,0.6285713,155.05,155.01,6.4509]
[1729097521314,12.50811541,155.04,155.01,6.4509]
[1729097521523,4.81081362,155.03,155.01,6.4509]
[1729097521825,7.0780713,155.05,155.01,6.4509]
[1729097522030,12.50945478,155.04,155.01,6.4509]
[1729097522235,4.81132876,155.03,155.01,6.4509]
[1729097522410,7.0780713,155.05,155.01,6.4509]
[1729097522610,12.51071481,155.04,155.01,16.1271]
[1729097522810,4.81181339,155.04,155.03,6.4503]
[1729097523026,0.6285713,155.05,155.04,50.226784]
[1729097528937,0.6285713,155.05,155.04,50.326784]
[1729097533020,0.6285713,155.05,155.04,50.452274]
[1729097533241,36.33502688,155.16,155.12,6.4465]
[1729097533448,12.48573747,155.15,155.11,6.4469]
[1729097533647,12.48573747,155.14,155.09,6.4475]
[1729097533853,11.24840672,155.13,155.08,6.4479]
[1729097534040,4.80220672,155.12,155.09,6.4478]
[1729097534240,6.4458,155.14,155.09,6.4478]
[1729097534558,4.80088034,155.13,155.1,6.4473]
[1729097534755,6.4454,155.15,155.11,6.447]
[1729097534929,12.48292415,155.14,155.1,6.4473]
[1729097535257,4.80112467,155.13,155.1,6.4473]
[1729097535425,6.446,155.14,155.09,22.5669]
[1729097535626,4.80097433,155.13,155.09,16.1191]
[1729097535842,28.3176,155.16,155.11,6.4469]
[1729097536045,12.48278182,155.15,155.11,6.4469]
[1729097536226,4.80106993,155.14,155.11,6.4469]
[1729097536428,4.80106993,155.13,155.12,22.5629]
[1729097536757,21.8726,155.16,155.12,22.5629]
[1729097537051,4.80041853,155.15,155.12,16.1163]
[1729097537253,4.80041853,155.14,155.11,6.4469]
[1729097537442,6.4454,155.15,155.11,6.4469]
[1729097537833,4.79908891,155.14,155.11,6.4469]
[1729097538049,6.4454,155.15,155.11,6.4469]
[1729097538247,4.79824631,155.14,155.11,6.4469]
[1729097538557,6.4461,155.14,155.09,22.5666]
[1729097538853,21.8726,155.16,155.09,22.5666]
[1729097539062,4.79772828,155.15,155.09,22.5666]
[1729097539232,4.79772828,155.14,155.09,22.5666]
[1729097539564,6.4467,155.12,155.07,6.4483]
[1729097539730,6.4463,155.13,155.08,6.4482]
[1729097541269,6.4472,155.11,155.06,22.571]
[1729097541429,6.4477,155.1,155.06,16.1222]
[1729097541626,6.4469,155.12,155.06,16.1222]
[1729097541833,29.87099643,155.16,155.06,16.1222]
[1729097542033,6.4458,155.14,155.09,6.4475]
[1729097544343,6.4458,155.14,155.1,6.4473]
[1729097545262,6.4454,155.15,155.11,6.447]
[1729097546845,6.4445,155.17,155.12,6.4462]
[1729097547046,38.6669713,155.2,155.12,6.4462]
[1729097547047,6.445,155.16,155.12,6.4462]
[1729097547272,6.4446,155.17,155.12,6.4462]
[1729097549678,38.6669713,155.2,155.13,6.4461]
[1729097549981,6.4446,155.17,155.13,6.4461]
[1729097550185,38.6669713,155.2,155.12,16.1161]
[1729097550186,22.5583713,155.2,155.12,16.1161]
[1729097550468,0.6285713,155.2,155.16,6.4449]
[1729097552070,7.0718713,155.2,155.16,6.4449]
[1729097552450,6.4437,155.19,155.15,6.4452]
[1729097552660,6.4442,155.18,155.14,16.1138]
[1729097552873,6.4438,155.19,155.14,22.5594]
[1729097555881,6.4444,155.18,155.14,16.1138]
[1729097556085,0.6285713,155.2,155.12,6.4462]
[1729097557477,6.445,155.16,155.12,6.4462]
[1729097557693,6.4455,155.15,155.11,22.5641]
[1729097559177,6.4458,155.14,155.1,22.839]
[1729097559485,6.4462,155.13,155.09,26.4476]
[1729097560493,6.4462,155.13,155.09,6.4476]
[1729097561993,6.4459,155.14,155.09,6.4476]
[1729097562696,22.184,155.18,155.09,6.4476]
[1729097562697,6.4464,155.13,155.09,6.4476]
[1729097565073,6.4458,155.14,155.1,6.4474]
[1729097565875,6.4455,155.15,155.1,6.4474]
[1729097566088,6.4455,155.15,155.11,6.4467]
[1729097566774,6.4448,155.17,155.12,6.4463]
[1729097566979,4.79728109,155.16,155.12,6.4463]
[1729097567187,6.4448,155.17,155.12,6.4463]
[1729097567387,22.184,155.18,155.13,6.446]
[1729097567388,4.79945882,155.16,155.13,6.446]
[1729097567582,28.6284,155.18,155.13,6.446]
[1729097567876,4.79948165,155.17,155.12,16.1162]
[1729097568088,6.444,155.19,155.14,6.4457]
[1729097568288,4.80115305,155.18,155.09,17.96511508]
[1729097568498,0.6285713,155.2,155.16,6.4448]
[1729097568698,4.80155488,155.19,155.17,6.4445]
[1729097568896,0.6285713,155.2,155.16,6.4448]
[1729097569508,0.6285713,155.2,155.17,6.4442]
[1729097570008,0.6285713,155.2,155.18,6.444]
[1729097570309,0.6285713,155.2,155.16,16.1118]
[1729097570510,0.6285713,155.2,155.18,6.444]
[1729097571877,0.6285713,155.2,155.19,6.4437]
[1729097572084,0.6285713,155.2,155.18,22.5537]
[1729097572389,0.6285713,155.2,155.16,6.4446]
[1729097572796,0.6285713,155.2,155.16,6.4448]
[1729097573975,7.0718713,155.2,155.15,16.1131]
[1729097574202,7.0718713,155.2,155.15,22.5581]
[1729097576202,7.0718713,155.2,155.15,16.1131]
[1729097576499,7.0718713,155.2,155.16,6.4447]
[1729097579505,7.0719713,155.2,155.16,6.4449]
[1729097580490,0.6285713,155.2,155.15,16.1131]
[1729097580711,0.6285713,155.2,155.17,6.4444]
[1729097580921,6.4437,155.19,155.15,22.5583]
[1729097581211,6.4445,155.17,155.13,6.446]
[1729097581587,6.4451,155.16,155.12,22.5624]
[1729097581782,6.4458,155.14,155.1,6.4473]
[1729097582011,6.4463,155.13,155.09,22.5666]
[1729097582191,16.1106,155.18,155.09,16.1188]
[1729097582401,6.4459,155.14,155.1,6.4473]
[1729097583195,6.4463,155.13,155.09,16.1188]
[1729097584002,23.876884,155.17,155.04,35.5907]
[1729097584201,6.4467,155.12,155.08,6.4481]
[1729097584599,6.4462,155.13,155.09,6.4478]
[1729097585815,16.1106,155.18,155.09,16.1194]
[1729097586022,6.4465,155.13,155.09,16.1194]
[1729097586513,6.4465,155.13,155.09,22.5672]
[1729097586690,16.1106,155.18,155.11,6.4468]
[1729097586896,6.4454,155.15,155.11,6.4468]
[1729097588014,6.446,155.14,155.1,6.4473]
[1729097588796,8.01237874,155.19,155.11,16.1168]
[1729097588998,20.52265372,155.18,155.16,6.4446]
[1729097589212,7.0718713,155.2,155.15,22.5576]
[1729097589509,4.81175629,155.19,155.16,6.4448]
[1729097589806,0.6285713,155.2,155.16,6.4448]
[1729097590213,4.81164256,155.19,155.16,6.4448]
[1729097590510,0.6285713,155.2,155.17,6.4443]
[1729097591430,6.4442,155.18,155.13,6.4458]
[1729097591594,6.4449,155.16,155.12,22.5623]
[1729097592616,6.4446,155.17,155.12,22.5623]
[1729097593716,8.64788007,155.2,155.11,22.5187]
[1729097593918,6.4445,155.17,155.12,6.4462]
[1729097594126,4.81222948,155.16,155.13,6.4459]
[1729097594323,6.4449,155.16,155.11,16.1171]
[1729097594511,6.4449,155.16,155.11,22.5638]
[1729097596819,6.4449,155.16,155.11,16.1171]
[1729097597012,6.4449,155.16,155.12,6.4465]
[1729097598413,6.4445,155.17,155.13,6.4461]
[1729097598614,4.81417961,155.16,155.13,6.4461]
[1729097598814,6.4445,155.17,155.13,6.4461]
[1729097599002,4.81417575,155.16,155.13,6.4461]
[1729097599201,6.4445,155.17,155.13,6.4461]
[1729097599505,4.81435179,155.16,155.13,6.4461]
[1729097599705,6.4445,155.17,155.13,6.4461]
[1729097599918,4.81412656,155.16,155.13,6.4461]
[1729097600105,6.4445,155.17,155.13,6.4461]
[1729097600311,4.81404386,155.16,155.13,6.4461]
[1729097600630,6.4445,155.17,155.13,6.4461]
[1729097601133,6.4452,155.16,155.11,22.5637]
[1729097601434,4.81423987,155.15,155.11,22.5637]
[1729097601642,6.4452,155.16,155.11,22.5637]
[1729097601826,6.4452,155.16,155.12,6.4465]
[1729097602310,4.81134791,155.15,155.12,6.4465]
[1729097602515,6.4458,155.14,155.1,6.447]
[1729097602941,6.4464,155.13,155.09,6.4476]
[1729097603115,6.4459,155.14,155.1,6.4474]
[1729097603709,6.4462,155.13,155.09,6.4477]
[1729097605225,6.4459,155.14,155.1,6.4471]
[1729097605540,6.4455,155.15,155.1,6.4471]
[1729097608537,6.4455,155.15,155.11,6.4467]
[1729097609934,22.0948,155.17,155.1,16.1179]
[1729097610140,12.5055807,155.16,155.12,6.4464]
[1729097610434,12.5055807,155.16,155.13,11.49739155]
[1729097610616,6.4441,155.18,155.14,22.5598]
[1729097610810,12.51038356,155.17,155.14,22.5598]
[1729097611834,4.81168598,155.17,155.15,6.4453]
[1729097612138,4.81285211,155.16,155.15,6.4453]
[1729097614931,0.6285713,155.2,155.14,20.0]
[1729097615234,4.81538852,155.19,155.18,6.444]
[1729097616836,0.6285713,155.2,155.18,6.444]
[1729097618042,0.6285713,155.2,155.19,6.4437]
[1729097619924,0.6285713,155.2,155.18,22.5536]
[1729097620130,0.6285713,155.2,155.19,6.4437]
[1729097620324,0.6285713,155.2,155.17,6.4443]
[1729097620635,0.6285713,155.2,155.18,6.444]
[1729097621738,0.6285713,155.2,155.18,6.4441]
[1729097624121,0.6285713,155.2,155.18,6.4438]
[1729097629332,0.6285713,155.2,155.19,6.4437]
[1729097641930,0.6285713,155.2,155.17,16.1111]
[1729097642149,0.6285713,155.2,155.18,6.4441]
[1729097642747,0.6285713,155.2,155.19,6.4437]
[1729097644163,0.6285713,155.2,155.17,16.1111]
[1729097644460,0.6285713,155.2,155.18,6.444]
[1729097646760,0.6285713,155.2,155.19,17.93114507]
[1729097646962,0.6285713,155.2,155.19,6.4437]
[1729097647158,0.6285713,155.2,155.18,6.444]
[1729097648759,0.6285713,155.2,155.19,6.4437]
[1729097648960,7.0718713,155.2,155.16,6.4449]
[1729097649162,0.6285713,155.2,155.14,16.1138]
[1729097649342,6.4451,155.16,155.12,6.4465]
[1729097651950,16.7369713,155.2,155.1,22.2385]
[1729097652151,16.7369713,155.2,155.16,6.4446]
[1729097652152,4.77710966,155.19,155.16,6.4446]
[1729097652352,0.6285713,155.2,155.19,6.4437]
[1729097652960,0.6285713,155.2,155.19,17.93114507]
[1729097654763,0.6285713,155.2,155.19,62.99642257]
[1729097654961,0.6285713,155.2,155.19,79.14952257]
[1729097655645,0.6285713,155.2,155.19,77.86112907]
[1729097655848,0.6285713,155.2,155.19,79.14934218]
[1729097656041,0.6285713,155.2,155.19,77.86112907]
[1729097657579,0.6285713,155.2,155.19,79.14930111]
[1729097661363,0.6285713,155.2,155.19,77.86112907]
[1729097664570,0.6285713,155.2,155.19,80.70674931]
[1729097664749,0.6285713,155.2,155.19,77.86112907]
[1729097665250,0.6285713,155.2,155.19,77.96112907]
[1729097667058,0.6285713,155.2,155.19,77.86112907]
[1729097667260,0.6285713,155.2,155.19,42.5968]
[1729097667462,0.6285713,155.2,155.19,54.08424507]
[1729097668478,0.6285713,155.2,155.19,66.373684]
[1729097668676,0.6285713,155.2,155.19,67.66191106]
[1729097672579,0.6285713,155.2,155.19,66.373684]
[1729097673263,0.6285713,155.2,155.19,77.86112907]
[1729097674384,0.6285713,155.2,155.19,79.14924815]
[1729097676673,0.6285713,155.2,155.19,79.24924815]
[1729097676866,0.6285713,155.2,155.19,79.27473815]
[1729097677072,0.6285713,155.2,155.19,79.47473815]
[1729097677887,6.4387,155.31,155.2,0.2]
[1729097678064,6.4387,155.31,155.27,6.4403]
[1729097679492,21.7105,155.33,155.28,16.0992]
[1729097679664,21.7105,155.33,155.3,6.4391]
[1729097679860,21.7105,155.33,155.26,11.48744507]
[1729097680063,21.7105,155.33,155.3,16.0968]
[1729097680383,21.7105,155.33,155.3,22.5358]
[1729097682191,28.1487,155.33,155.28,6.4398]
[1729097682683,6.4383,155.32,155.28,6.4398]
[1729097683276,21.7105,155.33,155.27,39.877284]
[1729097683277,6.4387,155.31,155.27,22.5407]
[1729097683784,6.4387,155.31,155.27,16.1004]
[1729097684159,6.4391,155.3,155.27,16.1004]
[1729097684357,21.7105,155.33,155.27,16.1004]
[1729097684585,6.4388,155.31,155.27,16.1004]
[1729097692474,6.4398,155.29,155.25,6.4408]
[1729097695077,21.7105,155.33,155.26,23.776884]
[1729097695263,11.21407735,155.32,155.28,6.4399]
[1729097695464,6.4384,155.32,155.28,6.4399]
[1729097696081,8.58629784,155.36,155.29,23.776884]
[1729097696293,6.4378,155.34,155.29,23.776884]
[1729097696592,6.4378,155.34,155.29,30.216284]
[1729097697395,4.7845275,155.33,155.29,30.216284]
[1729097697704,6.4378,155.34,155.29,30.216284]
[1729097697875,4.78457476,155.33,155.29,30.216284]
[1729097698076,6.4378,155.34,155.29,30.216284]
[1729097698295,4.78460081,155.33,155.29,23.776884]
[1729097698484,6.437,155.35,155.31,6.4386]
[1729097698686,18.8829244,155.34,155.3,6.4391]
[1729097698998,11.22460169,155.33,155.29,30.216084]
[1729097699181,6.4379,155.33,155.29,30.216084]
[1729097699379,8.68629784,155.36,155.25,15.1413]
[1729097699690,6.4388,155.31,155.27,6.4403]
[1729097700304,6.4381,155.33,155.28,6.4397]
[1729097700473,6.4381,155.33,155.29,6.4395]
[1729097700679,4.78663437,155.32,155.29,6.4395]